[Event "Titled Tuesday Blitz November 08 Early 2022"]
[White "Vidruska, Renate"]
[Black "Aqib Javaid Butt"]
[WhiteFideId "11601841"]
[BlackFideId "7801262"]
[WhiteElo "1877"]
[BlackElo "1659"]
[Result "1-0"]
[Round "09"]
[TimeControl "180+1"]
[Date "2022.11.09"]
[WhiteClock "0:01:03"]
[BlackClock "0:00:23"]

1. e4 {[%clk 0:02:58]}  c6 {[%clk 0:02:57]} 2. d4 {[%clk 0:02:58]}  d5 {[%clk 0:02:57]} 3. exd5 {[%clk 0:02:58]}  cxd5 {[%clk 0:02:57]} 4. Bd3 {[%clk 0:02:59]}  Nc6 {[%clk 0:02:57]} 5. h3 {[%clk 0:03:00]}  Nf6 {[%clk 0:02:57]} 6. Nf3 {[%clk 0:03:00]}  g6 {[%clk 0:02:56]} 7. O-O {[%clk 0:03:00]}  Bg7 {[%clk 0:02:57]} 8. c3 {[%clk 0:03:00]}  O-O {[%clk 0:02:57]} 9. Bf4 {[%clk 0:02:55]}  Be6 {[%clk 0:02:32]} 10. Re1 {[%clk 0:02:52]}  Re8 {[%clk 0:02:32]} 11. Ne5 {[%clk 0:02:22]}  Nxe5 {[%clk 0:01:51]} 12. Bxe5 {[%clk 0:02:22]}  Nd7 {[%clk 0:01:50]} 13. Bxg7 {[%clk 0:02:21]}  Kxg7 {[%clk 0:01:51]} 14. Nd2 {[%clk 0:02:18]}  Nf6 {[%clk 0:01:49]} 15. Nf3 {[%clk 0:02:12]}  Rc8 {[%clk 0:01:49]} 16. Qa4 {[%clk 0:01:50]}  a6 {[%clk 0:01:48]} 17. Ne5 {[%clk 0:01:45]}  Nd7 {[%clk 0:01:44]} 18. f4 {[%clk 0:01:43]}  Nxe5 {[%clk 0:01:42]} 19. fxe5 {[%clk 0:01:41]}  Qd7 {[%clk 0:01:37]} 20. Qd1 {[%clk 0:01:38]}  Bf5 {[%clk 0:01:35]} 21. Qf3 {[%clk 0:01:36]}  Bxd3 {[%clk 0:01:34]} 22. Qxd3 {[%clk 0:01:37]}  Rc6 {[%clk 0:01:23]} 23. Rf1 {[%clk 0:01:34]}  f6 {[%clk 0:01:22]} 24. Rae1 {[%clk 0:01:32]}  Re6 {[%clk 0:01:13]} 25. Qg3 {[%clk 0:01:24]}  Qb5 {[%clk 0:00:43]} 26. Qg4 {[%clk 0:01:13]}  f5 {[%clk 0:00:38]} 27. Rxf5 {[%clk 0:01:07]}  Qxb2 {[%clk 0:00:32]} 28. Ref1 {[%clk 0:01:04]}  Qxc3 {[%clk 0:00:23]} 29. Rf7+ {[%clk 0:01:03]}  Kg8 {[%clk 0:00:24]} 30. Qxe6 {[%clk 0:01:03]}  Qxd4+ {[%clk 0:00:23]} 31. Kh1 {[%clk 0:01:03]} 1-0


[Site "https://www.chess.com"]

[Event "Titled Tuesday Blitz November 08 Early 2022"]
[White "Winterberg, Lukas"]
[Black "Cruz Mendez, Jean Marco"]
[WhiteFideId "24622702"]
[BlackFideId "3526402"]
[WhiteElo "2349"]
[BlackElo "2064"]
[Result "1-0"]
[Round "09"]
[TimeControl "180+1"]
[Date "2022.11.09"]
[WhiteClock "0:00:28"]
[BlackClock "0:00:44"]

1. e4 {[%clk 0:03:00]}  c5 {[%clk 0:02:59]} 2. Bc4 {[%clk 0:03:00]}  e6 {[%clk 0:02:59]} 3. Nf3 {[%clk 0:02:58]}  a6 {[%clk 0:02:59]} 4. c3 {[%clk 0:02:52]}  d5 {[%clk 0:02:54]} 5. exd5 {[%clk 0:02:51]}  exd5 {[%clk 0:02:55]} 6. Bb3 {[%clk 0:02:52]}  Nf6 {[%clk 0:02:54]} 7. d4 {[%clk 0:02:52]}  c4 {[%clk 0:02:50]} 8. Bc2 {[%clk 0:02:52]}  Be7 {[%clk 0:02:50]} 9. h3 {[%clk 0:02:50]}  O-O {[%clk 0:02:50]} 10. O-O {[%clk 0:02:51]}  Re8 {[%clk 0:02:47]} 11. Bf4 {[%clk 0:02:50]}  Nbd7 {[%clk 0:02:47]} 12. Re1 {[%clk 0:02:50]}  Nf8 {[%clk 0:02:48]} 13. Nbd2 {[%clk 0:02:45]}  Be6 {[%clk 0:02:45]} 14. Ne5 {[%clk 0:02:44]}  Ng6 {[%clk 0:02:40]} 15. Nxg6 {[%clk 0:02:43]}  hxg6 {[%clk 0:02:41]} 16. Bxg6 {[%clk 0:02:42]}  Bxh3 {[%clk 0:02:34]} 17. Bxf7+ {[%clk 0:02:43]}  Kxf7 {[%clk 0:02:35]} 18. gxh3 {[%clk 0:02:43]}  Qd7 {[%clk 0:02:34]} 19. Nf3 {[%clk 0:02:40]}  Qf5 {[%clk 0:02:25]} 20. Ne5+ {[%clk 0:02:34]}  Kg8 {[%clk 0:02:23]} 21. Qf3 {[%clk 0:02:34]}  Rf8 {[%clk 0:02:13]} 22. Kg2 {[%clk 0:02:14]}  Ne4 {[%clk 0:02:10]} 23. Bg3 {[%clk 0:02:08]}  Qe6 {[%clk 0:01:56]} 24. Qg4 {[%clk 0:02:05]}  Qh6 {[%clk 0:01:42]} 25. Re3 {[%clk 0:01:50]}  Rad8 {[%clk 0:01:41]} 26. Rae1 {[%clk 0:01:48]}  Bg5 {[%clk 0:01:37]} 27. Rf3 {[%clk 0:01:23]}  Rxf3 {[%clk 0:01:30]} 28. Nxf3 {[%clk 0:01:24]}  Bf6 {[%clk 0:01:26]} 29. Qe6+ {[%clk 0:01:14]}  Kh8 {[%clk 0:01:22]} 30. Ne5 {[%clk 0:01:08]}  Bxe5 {[%clk 0:01:18]} 31. Qxh6+ {[%clk 0:01:05]}  gxh6 {[%clk 0:01:17]} 32. dxe5 {[%clk 0:00:58]}  Kh7 {[%clk 0:01:14]} 33. f3 {[%clk 0:00:58]}  Nc5 {[%clk 0:01:12]} 34. f4 {[%clk 0:00:49]}  Kg6 {[%clk 0:01:12]} 35. Kf3 {[%clk 0:00:44]}  Kf5 {[%clk 0:01:10]} 36. e6 {[%clk 0:00:38]}  Ne4 {[%clk 0:01:04]} 37. e7 {[%clk 0:00:34]}  Re8 {[%clk 0:01:02]} 38. Bh4 {[%clk 0:00:35]}  Nd2+ {[%clk 0:00:55]} 39. Ke3 {[%clk 0:00:33]}  Ne4 {[%clk 0:00:55]} 40. Kd4 {[%clk 0:00:32]}  Ke6 {[%clk 0:00:50]} 41. f5+ {[%clk 0:00:28]}  Kxf5 {[%clk 0:00:50]} 42. Kxd5 {[%clk 0:00:28]}  Nf6+ {[%clk 0:00:43]} 43. Bxf6 {[%clk 0:00:28]}  Kxf6 {[%clk 0:00:44]} 44. Kd6 {[%clk 0:00:28]} 1-0


[Site "https://www.chess.com"]

[Event "Titled Tuesday Blitz November 08 Early 2022"]
[White "Xiong, Jeffery"]
[Black "Tari, Aryan"]
[WhiteFideId "2047640"]
[BlackFideId "1510045"]
[WhiteElo "2725"]
[BlackElo "2612"]
[Result "1/2-1/2"]
[Round "09"]
[TimeControl "180+1"]
[Date "2022.11.08"]
[WhiteClock "0:00:02"]
[BlackClock "0:00:08"]

1. e4 {[%clk 0:03:00]}  e5 {[%clk 0:02:59]} 2. d3 {[%clk 0:03:01]}  Nc6 {[%clk 0:03:00]} 3. Nd2 {[%clk 0:02:58]}  Nf6 {[%clk 0:02:59]} 4. c3 {[%clk 0:02:58]}  d5 {[%clk 0:02:58]} 5. Qc2 {[%clk 0:02:56]}  Bd6 {[%clk 0:02:55]} 6. b4 {[%clk 0:02:55]}  O-O {[%clk 0:02:54]} 7. Ngf3 {[%clk 0:02:54]}  Ne7 {[%clk 0:02:49]} 8. Be2 {[%clk 0:02:50]}  c6 {[%clk 0:02:49]} 9. O-O {[%clk 0:02:49]}  Ng6 {[%clk 0:02:50]} 10. g3 {[%clk 0:02:49]}  Bh3 {[%clk 0:02:46]} 11. Re1 {[%clk 0:02:48]}  h6 {[%clk 0:02:47]} 12. Bf1 {[%clk 0:02:48]}  Qd7 {[%clk 0:02:47]} 13. Bb2 {[%clk 0:02:40]}  Rae8 {[%clk 0:02:46]} 14. a3 {[%clk 0:02:39]}  Bxf1 {[%clk 0:02:42]} 15. Nxf1 {[%clk 0:02:39]}  Qh3 {[%clk 0:02:42]} 16. Ne3 {[%clk 0:02:29]}  Ng4 {[%clk 0:02:15]} 17. c4 {[%clk 0:01:26]}  Nf4 {[%clk 0:01:25]} 18. cxd5 {[%clk 0:01:07]}  cxd5 {[%clk 0:01:08]} 19. gxf4 {[%clk 0:00:50]}  Qxf3 {[%clk 0:00:50]} 20. f5 {[%clk 0:00:19]}  Rc8 {[%clk 0:00:37]} 21. Qe2 {[%clk 0:00:18]}  Qxe2 {[%clk 0:00:36]} 22. Rxe2 {[%clk 0:00:19]}  Nxe3 {[%clk 0:00:37]} 23. fxe3 {[%clk 0:00:17]}  dxe4 {[%clk 0:00:35]} 24. dxe4 {[%clk 0:00:18]}  Rc4 {[%clk 0:00:35]} 25. Rd1 {[%clk 0:00:18]}  Bb8 {[%clk 0:00:30]} 26. Rd7 {[%clk 0:00:19]}  b6 {[%clk 0:00:26]} 27. Kf2 {[%clk 0:00:10]}  Rxe4 {[%clk 0:00:25]} 28. Rc2 {[%clk 0:00:11]}  Rh4 {[%clk 0:00:20]} 29. Kg3 {[%clk 0:00:10]}  Re4 {[%clk 0:00:07]} 30. Kf3 {[%clk 0:00:11]}  Rh4 {[%clk 0:00:08]} 31. Kg3 {[%clk 0:00:11]}  Re4 {[%clk 0:00:07]} 32. Kf3 {[%clk 0:00:06]}  Rh4 {[%clk 0:00:08]} 33. Kg3 {[%clk 0:00:02]} 1/2-1/2


[Site "https://www.chess.com"]

[Event "Titled Tuesday Blitz November 08 Early 2022"]
[White "Yeremyan, Alen"]
[Black "Kopylov, Alexander A."]
[WhiteFideId "13308998"]
[BlackFideId "4164857"]
[WhiteElo "2159"]
[BlackElo "2436"]
[Result "1/2-1/2"]
[Round "09"]
[TimeControl "180+1"]
[Date "2022.11.08"]
[WhiteClock "0:00:20"]
[BlackClock "0:00:13"]

1. c4 {[%clk 0:03:00]}  Nf6 {[%clk 0:02:58]} 2. Nc3 {[%clk 0:02:59]}  e5 {[%clk 0:02:58]} 3. e4 {[%clk 0:02:59]}  g6 {[%clk 0:02:57]} 4. g3 {[%clk 0:02:59]}  Bg7 {[%clk 0:02:58]} 5. Bg2 {[%clk 0:03:00]}  O-O {[%clk 0:02:58]} 6. Nge2 {[%clk 0:03:00]}  d6 {[%clk 0:02:58]} 7. O-O {[%clk 0:03:01]}  Nc6 {[%clk 0:02:57]} 8. d3 {[%clk 0:03:02]}  Nh5 {[%clk 0:02:54]} 9. Be3 {[%clk 0:02:58]}  f5 {[%clk 0:02:54]} 10. f4 {[%clk 0:02:54]}  exf4 {[%clk 0:02:54]} 11. Nxf4 {[%clk 0:02:54]}  Nxf4 {[%clk 0:02:53]} 12. Rxf4 {[%clk 0:02:55]}  Bh6 {[%clk 0:02:51]} 13. Rf3 {[%clk 0:02:54]}  Bxe3+ {[%clk 0:02:50]} 14. Rxe3 {[%clk 0:02:54]}  Nd4 {[%clk 0:02:45]} 15. exf5 {[%clk 0:02:44]}  Bxf5 {[%clk 0:02:44]} 16. Bxb7 {[%clk 0:02:41]}  Rb8 {[%clk 0:02:44]} 17. Bd5+ {[%clk 0:02:41]}  Kh8 {[%clk 0:02:43]} 18. b3 {[%clk 0:02:41]}  c6 {[%clk 0:02:34]} 19. Bg2 {[%clk 0:02:39]}  Qb6 {[%clk 0:02:33]} 20. Na4 {[%clk 0:02:31]}  Qa5 {[%clk 0:02:27]} 21. Re7 {[%clk 0:02:14]}  Rbe8 {[%clk 0:02:18]} 22. Qe1 {[%clk 0:02:00]}  Qd8 {[%clk 0:02:16]} 23. Rxe8 {[%clk 0:01:54]}  Rxe8 {[%clk 0:02:17]} 24. Qc3 {[%clk 0:01:49]}  Qf6 {[%clk 0:02:16]} 25. Kh1 {[%clk 0:01:49]}  Re2 {[%clk 0:02:10]} 26. Rf1 {[%clk 0:01:40]}  Rxg2 {[%clk 0:01:49]} 27. Rxf5 {[%clk 0:01:14]}  Rxh2+ {[%clk 0:01:34]} 28. Kxh2 {[%clk 0:01:12]}  gxf5 {[%clk 0:01:34]} 29. Qc1 {[%clk 0:01:05]}  Qe5 {[%clk 0:01:26]} 30. Nc3 {[%clk 0:00:56]}  Nf3+ {[%clk 0:01:17]} 31. Kh3 {[%clk 0:00:50]}  Kg7 {[%clk 0:01:08]} 32. Qf4 {[%clk 0:00:40]}  Qxf4 {[%clk 0:00:27]} 33. gxf4 {[%clk 0:00:40]}  Kf6 {[%clk 0:00:24]} 34. Ne2 {[%clk 0:00:30]}  c5 {[%clk 0:00:17]} 35. Kg3 {[%clk 0:00:29]}  Ne1 {[%clk 0:00:16]} 36. d4 {[%clk 0:00:30]}  Nc2 {[%clk 0:00:16]} 37. dxc5 {[%clk 0:00:30]}  dxc5 {[%clk 0:00:17]} 38. Nc3 {[%clk 0:00:30]}  Nb4 {[%clk 0:00:16]} 39. Na4 {[%clk 0:00:30]}  Nxa2 {[%clk 0:00:13]} 40. Nxc5 {[%clk 0:00:31]}  Nc1 {[%clk 0:00:13]} 41. b4 {[%clk 0:00:21]}  Ne2+ {[%clk 0:00:11]} 42. Kf3 {[%clk 0:00:20]}  Nd4+ {[%clk 0:00:11]} 43. Kg3 {[%clk 0:00:20]}  Ne2+ {[%clk 0:00:12]} 44. Kf3 {[%clk 0:00:20]}  Nd4+ {[%clk 0:00:12]} 45. Kg3 {[%clk 0:00:20]}  Ne2+ {[%clk 0:00:13]} 1/2-1/2


[Site "https://www.chess.com"]

[Event "Titled Tuesday Blitz November 08 Early 2022"]
[White "Zaichenko, Daria"]
[Black "Forgacs, Attila Jr."]
[WhiteFideId "4197453"]
[BlackFideId "773654"]
[WhiteElo "2039"]
[BlackElo "2168"]
[Result "0-1"]
[Round "09"]
[TimeControl "180+1"]
[Date "2022.11.09"]
[WhiteClock "0:00:11"]
[BlackClock "0:00:11"]

1. e4 {[%clk 0:02:57]}  e5 {[%clk 0:02:57]} 2. Nf3 {[%clk 0:02:57]}  Nc6 {[%clk 0:02:58]} 3. Bc4 {[%clk 0:02:56]}  Nf6 {[%clk 0:02:57]} 4. d3 {[%clk 0:02:56]}  h6 {[%clk 0:02:57]} 5. c3 {[%clk 0:02:56]}  d6 {[%clk 0:02:57]} 6. Bb3 {[%clk 0:02:56]}  g5 {[%clk 0:02:57]} 7. Nbd2 {[%clk 0:02:51]}  Bg7 {[%clk 0:02:57]} 8. Nf1 {[%clk 0:02:46]}  d5 {[%clk 0:02:50]} 9. Qe2 {[%clk 0:02:41]}  O-O {[%clk 0:02:44]} 10. Ng3 {[%clk 0:02:39]}  Re8 {[%clk 0:02:14]} 11. Nxg5 {[%clk 0:02:23]}  hxg5 {[%clk 0:02:13]} 12. Bxg5 {[%clk 0:02:23]}  Qd6 {[%clk 0:02:02]} 13. Bxf6 {[%clk 0:02:17]}  Qxf6 {[%clk 0:01:58]} 14. Nh5 {[%clk 0:02:03]}  Qg5 {[%clk 0:01:52]} 15. Nxg7 {[%clk 0:02:03]}  Kxg7 {[%clk 0:01:48]} 16. Bxd5 {[%clk 0:01:49]}  Be6 {[%clk 0:01:39]} 17. Bxc6 {[%clk 0:01:36]}  bxc6 {[%clk 0:01:39]} 18. Kf1 {[%clk 0:01:31]}  Rh8 {[%clk 0:01:34]} 19. f3 {[%clk 0:01:25]}  Rh4 {[%clk 0:01:29]} 20. g3 {[%clk 0:01:00]}  Rh3 {[%clk 0:01:27]} 21. Kg2 {[%clk 0:00:52]}  Rah8 {[%clk 0:01:25]} 22. Rag1 {[%clk 0:00:44]}  Qh6 {[%clk 0:01:21]} 23. Kf2 {[%clk 0:00:30]}  Rxh2+ {[%clk 0:01:20]} 24. Rxh2 {[%clk 0:00:31]}  Qxh2+ {[%clk 0:01:21]} 25. Rg2 {[%clk 0:00:31]}  Qh1 {[%clk 0:01:20]} 26. Qe3 {[%clk 0:00:27]}  Qh6 {[%clk 0:01:20]} 27. f4 {[%clk 0:00:26]}  Qf6 {[%clk 0:01:06]} 28. f5 {[%clk 0:00:25]}  Rh1 {[%clk 0:01:00]} 29. g4 {[%clk 0:00:21]}  Qh4+ {[%clk 0:00:57]} 30. Qg3 {[%clk 0:00:21]}  Qxg3+ {[%clk 0:00:54]} 31. Kxg3 {[%clk 0:00:20]}  Bxa2 {[%clk 0:00:54]} 32. c4 {[%clk 0:00:19]}  Bb3 {[%clk 0:00:52]} 33. Rd2 {[%clk 0:00:18]}  Rd1 {[%clk 0:00:52]} 34. Rxd1 {[%clk 0:00:17]}  Bxd1 {[%clk 0:00:53]} 35. g5 {[%clk 0:00:18]}  Bc2 {[%clk 0:00:52]} 36. Kf3 {[%clk 0:00:17]}  Bxd3 {[%clk 0:00:52]} 37. c5 {[%clk 0:00:17]}  Kf8 {[%clk 0:00:46]} 38. b4 {[%clk 0:00:15]}  Ke7 {[%clk 0:00:44]} 39. Ke3 {[%clk 0:00:15]}  Bc2 {[%clk 0:00:43]} 40. Kf3 {[%clk 0:00:16]}  Kd7 {[%clk 0:00:34]} 41. Ke3 {[%clk 0:00:15]}  Bb1 {[%clk 0:00:33]} 42. Kf3 {[%clk 0:00:15]}  Ba2 {[%clk 0:00:32]} 43. Ke3 {[%clk 0:00:14]}  Bc4 {[%clk 0:00:31]} 44. Kf3 {[%clk 0:00:11]}  Kc8 {[%clk 0:00:30]} 45. Ke3 {[%clk 0:00:09]}  Kb7 {[%clk 0:00:27]} 46. Kf3 {[%clk 0:00:09]}  Ka6 {[%clk 0:00:26]} 47. Kg4 {[%clk 0:00:09]}  Kb5 {[%clk 0:00:24]} 48. f6 {[%clk 0:00:09]}  Kxb4 {[%clk 0:00:21]} 49. Kf5 {[%clk 0:00:10]}  a5 {[%clk 0:00:17]} 50. Kxe5 {[%clk 0:00:10]}  Kxc5 {[%clk 0:00:15]} 51. Kf5 {[%clk 0:00:10]}  Be6+ {[%clk 0:00:13]} 52. Ke5 {[%clk 0:00:10]}  Bb3 {[%clk 0:00:10]} 53. Kf5 {[%clk 0:00:10]}  a4 {[%clk 0:00:09]} 54. g6 {[%clk 0:00:10]}  fxg6+ {[%clk 0:00:10]} 55. Kxg6 {[%clk 0:00:11]}  a3 {[%clk 0:00:10]} 56. e5 {[%clk 0:00:11]}  a2 {[%clk 0:00:10]} 57. f7 {[%clk 0:00:10]}  Bxf7+ {[%clk 0:00:10]} 58. Kxf7 {[%clk 0:00:11]}  a1=Q {[%clk 0:00:11]} 59. e6 {[%clk 0:00:12]}  Kd6 {[%clk 0:00:10]} 60. e7 {[%clk 0:00:12]}  Qf1+ {[%clk 0:00:10]} 61. Ke8 {[%clk 0:00:11]}  Qe2 {[%clk 0:00:10]} 62. Kd8 {[%clk 0:00:11]}  Qxe7+ {[%clk 0:00:11]} 63. Kc8 {[%clk 0:00:11]}  Qe8+ {[%clk 0:00:11]} 64. Kb7 {[%clk 0:00:11]}  c5 {[%clk 0:00:11]} 0-1


[Site "https://www.chess.com"]

[Event "Titled Tuesday Blitz November 08 Early 2022"]
[White "Zhigalko, Sergei"]
[Black "Le, Tuan Minh"]
[WhiteFideId "13502956"]
[BlackFideId "12401153"]
[WhiteElo "2662"]
[BlackElo "2530"]
[Result "0-1"]
[Round "09"]
[TimeControl "180+1"]
[Date "2022.11.08"]
[WhiteClock "0:00:01"]
[BlackClock "0:00:11"]

1. e4 {[%clk 0:03:00]}  c5 {[%clk 0:02:56]} 2. Nf3 {[%clk 0:03:00]}  Nf6 {[%clk 0:02:56]} 3. e5 {[%clk 0:03:00]}  Nd5 {[%clk 0:02:57]} 4. c3 {[%clk 0:03:01]}  Nc6 {[%clk 0:02:57]} 5. Bc4 {[%clk 0:03:01]}  Nb6 {[%clk 0:02:57]} 6. Bb3 {[%clk 0:03:02]}  d5 {[%clk 0:02:42]} 7. exd6 {[%clk 0:03:02]}  c4 {[%clk 0:02:41]} 8. Bc2 {[%clk 0:03:00]}  Qxd6 {[%clk 0:02:40]} 9. O-O {[%clk 0:03:00]}  Bg4 {[%clk 0:02:39]} 10. Re1 {[%clk 0:02:56]}  e6 {[%clk 0:02:38]} 11. b3 {[%clk 0:02:52]}  cxb3 {[%clk 0:02:38]} 12. axb3 {[%clk 0:02:53]}  Be7 {[%clk 0:02:38]} 13. Na3 {[%clk 0:02:51]}  O-O {[%clk 0:02:30]} 14. Nc4 {[%clk 0:02:49]}  Nxc4 {[%clk 0:02:29]} 15. bxc4 {[%clk 0:02:49]}  Qc7 {[%clk 0:02:21]} 16. d4 {[%clk 0:02:48]}  Rfd8 {[%clk 0:02:13]} 17. Be4 {[%clk 0:02:48]}  Bf6 {[%clk 0:02:08]} 18. Qc2 {[%clk 0:02:20]}  Kh8 {[%clk 0:01:33]} 19. c5 {[%clk 0:01:29]}  Bh5 {[%clk 0:01:24]} 20. Rb1 {[%clk 0:01:08]}  b6 {[%clk 0:01:14]} 21. Qa4 {[%clk 0:00:58]}  Rac8 {[%clk 0:01:07]} 22. cxb6 {[%clk 0:00:32]}  axb6 {[%clk 0:01:08]} 23. Qb5 {[%clk 0:00:33]}  Bxf3 {[%clk 0:00:28]} 24. Bxf3 {[%clk 0:00:33]}  Na5 {[%clk 0:00:29]} 25. Qxb6 {[%clk 0:00:06]}  Qxc3 {[%clk 0:00:16]} 26. Be3 {[%clk 0:00:01]}  Nc4 {[%clk 0:00:16]} 27. Qb3 {[%clk 0:00:01]}  Bxd4 {[%clk 0:00:15]} 28. Qxc3 {[%clk 0:00:01]}  Bxc3 {[%clk 0:00:15]} 29. Re2 {[%clk 0:00:01]}  Nxe3 {[%clk 0:00:15]} 30. fxe3 {[%clk 0:00:01]}  Be5 {[%clk 0:00:15]} 31. g3 {[%clk 0:00:01]}  g6 {[%clk 0:00:16]} 32. Kf2 {[%clk 0:00:01]}  Kg7 {[%clk 0:00:16]} 33. Ra2 {[%clk 0:00:02]}  Rc7 {[%clk 0:00:16]} 34. Rd1 {[%clk 0:00:02]}  Rb8 {[%clk 0:00:15]} 35. Rad2 {[%clk 0:00:02]}  h5 {[%clk 0:00:10]} 36. Rd7 {[%clk 0:00:02]}  Rc3 {[%clk 0:00:11]} 37. R7d3 {[%clk 0:00:01]}  Rb2+ {[%clk 0:00:11]} 38. R3d2 {[%clk 0:00:01]}  Rbb3 {[%clk 0:00:11]} 39. Re2 {[%clk 0:00:01]}  Bc7 {[%clk 0:00:11]} 0-1


[Site "https://www.chess.com"]

[Event "Titled Tuesday Blitz November 08 Early 2022"]
[White "czernikowskqa"]
[Black "Turzo, Attila"]
[BlackFideId "704954"]
[WhiteElo "1955"]
[BlackElo "2511"]
[Result "0-1"]
[Round "09"]
[TimeControl "180+1"]
[Date "2022.11.09"]
[WhiteClock "0:00:43"]
[BlackClock "0:00:36"]

1. d4 {[%clk 0:03:00]}  Nf6 {[%clk 0:02:59]} 2. c4 {[%clk 0:03:00]}  g6 {[%clk 0:02:59]} 3. Nc3 {[%clk 0:03:01]}  d5 {[%clk 0:02:59]} 4. Bg5 {[%clk 0:02:55]}  Ne4 {[%clk 0:02:52]} 5. h4 {[%clk 0:02:55]}  Nxc3 {[%clk 0:02:42]} 6. bxc3 {[%clk 0:02:56]}  h6 {[%clk 0:02:37]} 7. Bf4 {[%clk 0:02:51]}  Nc6 {[%clk 0:02:33]} 8. Nf3 {[%clk 0:02:46]}  dxc4 {[%clk 0:02:31]} 9. e4 {[%clk 0:02:46]}  Bg7 {[%clk 0:02:31]} 10. Bxc4 {[%clk 0:02:45]}  O-O {[%clk 0:02:31]} 11. O-O {[%clk 0:02:36]}  Bg4 {[%clk 0:02:30]} 12. Be2 {[%clk 0:02:34]}  Bxf3 {[%clk 0:02:26]} 13. Bxf3 {[%clk 0:02:34]}  e5 {[%clk 0:02:26]} 14. dxe5 {[%clk 0:02:28]}  Qxh4 {[%clk 0:02:21]} 15. Bg3 {[%clk 0:02:26]}  Qe7 {[%clk 0:02:21]} 16. Qb3 {[%clk 0:02:26]}  b6 {[%clk 0:02:17]} 17. e6 {[%clk 0:02:20]}  fxe6 {[%clk 0:02:11]} 18. e5 {[%clk 0:02:18]}  Na5 {[%clk 0:02:11]} 19. Qc2 {[%clk 0:02:11]}  Rxf3 {[%clk 0:02:05]} 20. gxf3 {[%clk 0:02:09]}  Kh7 {[%clk 0:01:48]} 21. Rfe1 {[%clk 0:02:06]}  Rf8 {[%clk 0:01:45]} 22. Re4 {[%clk 0:02:06]}  Rxf3 {[%clk 0:01:39]} 23. Rg4 {[%clk 0:02:06]}  Rf5 {[%clk 0:01:38]} 24. Kg2 {[%clk 0:01:58]}  Nc6 {[%clk 0:01:27]} 25. f4 {[%clk 0:01:40]}  Qc5 {[%clk 0:01:24]} 26. Rh1 {[%clk 0:01:36]}  Qd5+ {[%clk 0:01:22]} 27. Kg1 {[%clk 0:01:33]}  Qf3 {[%clk 0:01:20]} 28. Rhh4 {[%clk 0:01:20]}  Ne7 {[%clk 0:01:09]} 29. Qg2 {[%clk 0:01:20]}  Qxc3 {[%clk 0:01:01]} 30. Bf2 {[%clk 0:01:12]}  c5 {[%clk 0:00:54]} 31. Rh3 {[%clk 0:01:12]}  Qd2 {[%clk 0:00:53]} 32. Rhg3 {[%clk 0:01:11]}  Rxf4 {[%clk 0:00:44]} 33. Rxg6 {[%clk 0:01:01]}  Nxg6 {[%clk 0:00:37]} 34. Rxg6 {[%clk 0:01:01]}  Qd1+ {[%clk 0:00:37]} 35. Kh2 {[%clk 0:00:50]}  Qh5+ {[%clk 0:00:37]} 36. Qh3 {[%clk 0:00:43]}  Qxh3+ {[%clk 0:00:36]} 0-1


[Site "https://www.chess.com"]

[Event "Titled Tuesday Blitz November 08 Early 2022"]
[White "Akylbekov, Nasyr"]
[Black "Derjabin, Ilja"]
[WhiteFideId "13800353"]
[BlackFideId "14104768"]
[WhiteElo "2310"]
[BlackElo "2312"]
[Result "0-1"]
[Round "10"]
[TimeControl "180+1"]
[Date "2022.11.09"]
[WhiteClock "0:00:09"]
[BlackClock "0:00:38"]

1. e4 {[%clk 0:03:00]}  c5 {[%clk 0:02:52]} 2. Nf3 {[%clk 0:02:58]}  d6 {[%clk 0:02:53]} 3. Nc3 {[%clk 0:02:40]}  Nc6 {[%clk 0:02:44]} 4. d4 {[%clk 0:02:41]}  cxd4 {[%clk 0:02:44]} 5. Nxd4 {[%clk 0:02:40]}  e5 {[%clk 0:02:45]} 6. Nxc6 {[%clk 0:02:41]}  bxc6 {[%clk 0:02:45]} 7. Bd3 {[%clk 0:02:41]}  Nf6 {[%clk 0:02:44]} 8. O-O {[%clk 0:02:41]}  Be7 {[%clk 0:02:44]} 9. f4 {[%clk 0:02:40]}  O-O {[%clk 0:02:44]} 10. Qf3 {[%clk 0:02:35]}  Rb8 {[%clk 0:02:34]} 11. b3 {[%clk 0:02:29]}  Qa5 {[%clk 0:02:30]} 12. Bb2 {[%clk 0:02:22]}  Re8 {[%clk 0:02:08]} 13. Ne2 {[%clk 0:02:16]}  Bg4 {[%clk 0:02:02]} 14. Qf2 {[%clk 0:02:08]}  d5 {[%clk 0:01:46]} 15. fxe5 {[%clk 0:01:54]}  Bc5 {[%clk 0:01:32]} 16. Bd4 {[%clk 0:01:53]}  Bxe2 {[%clk 0:01:28]} 17. Bxc5 {[%clk 0:01:38]}  Bxf1 {[%clk 0:01:28]} 18. Rxf1 {[%clk 0:01:37]}  dxe4 {[%clk 0:01:23]} 19. exf6 {[%clk 0:01:34]}  exd3 {[%clk 0:01:23]} 20. fxg7 {[%clk 0:01:27]}  Rb7 {[%clk 0:01:22]} 21. cxd3 {[%clk 0:01:19]}  Qc3 {[%clk 0:01:16]} 22. d4 {[%clk 0:01:10]}  Qe3 {[%clk 0:01:09]} 23. Qxe3 {[%clk 0:01:02]}  Rxe3 {[%clk 0:01:10]} 24. d5 {[%clk 0:01:01]}  Rd3 {[%clk 0:00:53]} 25. dxc6 {[%clk 0:00:55]}  Rc7 {[%clk 0:00:53]} 26. b4 {[%clk 0:00:50]}  Rxc6 {[%clk 0:00:51]} 27. Bxa7 {[%clk 0:00:49]}  Ra6 {[%clk 0:00:46]} 28. Bc5 {[%clk 0:00:38]}  Rxa2 {[%clk 0:00:46]} 29. g4 {[%clk 0:00:14]}  Rdd2 {[%clk 0:00:43]} 30. Rf2 {[%clk 0:00:12]}  Kxg7 {[%clk 0:00:37]} 31. Rxd2 {[%clk 0:00:08]}  Rxd2 {[%clk 0:00:38]} 32. b5 {[%clk 0:00:09]}  Rd5 {[%clk 0:00:38]} 0-1


[Site "https://www.chess.com"]